[Event "Titled Tuesday Blitz December 13 Late 2022"]
[White "Jimenez Almeida, Luis David"]
[Black "Kazakouski, Valery"]
[WhiteFideId "22242244"]
[BlackFideId "13507443"]
[WhiteElo "2158"]
[BlackElo "2516"]
[Result "0-1"]
[Round "05"]
[TimeControl "180+1"]
[Date "2022.12.14"]
[WhiteClock "0:01:40"]
[BlackClock "0:02:12"]

1. e4 {[%clk 0:03:00]}  e5 {[%clk 0:03:00]} 2. Nf3 {[%clk 0:02:59]}  Nc6 {[%clk 0:03:00]} 3. Bb5 {[%clk 0:02:58]}  a6 {[%clk 0:03:00]} 4. Ba4 {[%clk 0:02:57]}  Nf6 {[%clk 0:03:00]} 5. O-O {[%clk 0:02:56]}  Be7 {[%clk 0:03:00]} 6. Re1 {[%clk 0:02:56]}  b5 {[%clk 0:03:00]} 7. Bb3 {[%clk 0:02:55]}  O-O {[%clk 0:03:01]} 8. d3 {[%clk 0:02:55]}  d6 {[%clk 0:03:02]} 9. c3 {[%clk 0:02:55]}  Nb8 {[%clk 0:03:00]} 10. Nbd2 {[%clk 0:02:53]}  Nbd7 {[%clk 0:03:00]} 11. Bc2 {[%clk 0:02:51]}  Bb7 {[%clk 0:02:59]} 12. Nf1 {[%clk 0:02:49]}  Nc5 {[%clk 0:02:56]} 13. Ng3 {[%clk 0:02:46]}  Re8 {[%clk 0:02:56]} 14. Nf5 {[%clk 0:02:45]}  Bf8 {[%clk 0:02:56]} 15. Qe2 {[%clk 0:02:43]}  d5 {[%clk 0:02:51]} 16. Ng3 {[%clk 0:02:31]}  Ncd7 {[%clk 0:02:23]} 17. h3 {[%clk 0:02:26]}  c5 {[%clk 0:02:23]} 18. Nf5 {[%clk 0:02:23]}  c4 {[%clk 0:02:21]} 19. exd5 {[%clk 0:02:19]}  cxd3 {[%clk 0:02:20]} 20. Qxd3 {[%clk 0:01:46]}  e4 {[%clk 0:02:18]} 21. Qd4 {[%clk 0:01:40]}  Bc5 {[%clk 0:02:12]} 0-1


[Site "https://www.chess.com"]

[Event "Titled Tuesday Blitz December 13 Late 2022"]
[White "Korchmar, Vasiliy"]
[Black "Hajiyev, Kanan"]
[WhiteFideId "24131750"]
[BlackFideId "13404148"]
[WhiteElo "2370"]
[BlackElo "2118"]
[Result "1-0"]
[Round "05"]
[TimeControl "180+1"]
[Date "2022.12.14"]
[WhiteClock "0:01:07"]
[BlackClock "0:00:03"]

1. e4 {[%clk 0:02:53]}  c6 {[%clk 0:02:59]} 2. d4 {[%clk 0:02:53]}  d5 {[%clk 0:03:00]} 3. e5 {[%clk 0:02:53]}  a6 {[%clk 0:03:00]} 4. c4 {[%clk 0:02:48]}  Bf5 {[%clk 0:03:00]} 5. Nc3 {[%clk 0:02:47]}  e6 {[%clk 0:03:00]} 6. a3 {[%clk 0:02:41]}  h6 {[%clk 0:02:59]} 7. h4 {[%clk 0:02:37]}  Nd7 {[%clk 0:02:53]} 8. cxd5 {[%clk 0:02:36]}  cxd5 {[%clk 0:02:48]} 9. g4 {[%clk 0:02:36]}  Bh7 {[%clk 0:02:47]} 10. Bd3 {[%clk 0:02:36]}  Bxd3 {[%clk 0:02:45]} 11. Qxd3 {[%clk 0:02:37]}  Ne7 {[%clk 0:02:38]} 12. h5 {[%clk 0:02:37]}  Nc6 {[%clk 0:02:37]} 13. Nge2 {[%clk 0:02:37]}  Be7 {[%clk 0:02:34]} 14. O-O {[%clk 0:02:37]}  Qb6 {[%clk 0:02:31]} 15. b4 {[%clk 0:02:31]}  O-O {[%clk 0:02:22]} 16. Be3 {[%clk 0:02:30]}  f5 {[%clk 0:02:16]} 17. gxf5 {[%clk 0:02:25]}  Rxf5 {[%clk 0:02:07]} 18. Nxd5 {[%clk 0:02:25]}  Qd8 {[%clk 0:01:59]} 19. Ng3 {[%clk 0:02:22]}  Rf7 {[%clk 0:01:26]} 20. Nf4 {[%clk 0:02:22]}  Nf8 {[%clk 0:01:04]} 21. Qe4 {[%clk 0:02:22]}  Bg5 {[%clk 0:00:50]} 22. Ng6 {[%clk 0:01:59]}  Nxg6 {[%clk 0:00:26]} 23. hxg6 {[%clk 0:02:00]}  Rd7 {[%clk 0:00:24]} 24. Rad1 {[%clk 0:01:58]}  Qe8 {[%clk 0:00:20]} 25. Bxg5 {[%clk 0:01:57]}  hxg5 {[%clk 0:00:20]} 26. Kg2 {[%clk 0:01:53]}  Ne7 {[%clk 0:00:19]} 27. Rh1 {[%clk 0:01:40]}  Qxg6 {[%clk 0:00:18]} 28. Qg4 {[%clk 0:01:40]}  Nf5 {[%clk 0:00:14]} 29. Ne4 {[%clk 0:01:20]}  Rxd4 {[%clk 0:00:09]} 30. Rxd4 {[%clk 0:01:15]}  Nxd4 {[%clk 0:00:10]} 31. Nxg5 {[%clk 0:01:16]}  Rf8 {[%clk 0:00:07]} 32. Qh4 {[%clk 0:01:07]}  Rf5 {[%clk 0:00:03]} 33. Qh8# {[%clk 0:01:07]} 1-0


[Site "https://www.chess.com"]

[Event "Titled Tuesday Blitz December 13 Late 2022"]
[White "Kujawski, Adam"]
[Black "Vlassov, Nikolai"]
[WhiteFideId "1100920"]
[BlackFideId "4103360"]
[WhiteElo "2054"]
[BlackElo "2324"]
[Result "0-1"]
[Round "05"]
[TimeControl "180+1"]
[Date "2022.12.14"]
[WhiteClock "0:00:03"]
[BlackClock "0:00:11"]

1. e4 {[%clk 0:02:50]}  Nc6 {[%clk 0:02:58]} 2. d4 {[%clk 0:02:50]}  d5 {[%clk 0:02:57]} 3. Nc3 {[%clk 0:02:49]}  e5 {[%clk 0:02:53]} 4. Nxd5 {[%clk 0:02:48]}  exd4 {[%clk 0:02:43]} 5. Nf3 {[%clk 0:02:40]}  Be6 {[%clk 0:02:27]} 6. Nxd4 {[%clk 0:02:02]}  Nxd4 {[%clk 0:02:23]} 7. Qxd4 {[%clk 0:02:02]}  c6 {[%clk 0:02:21]} 8. Be3 {[%clk 0:01:59]}  cxd5 {[%clk 0:02:17]} 9. O-O-O {[%clk 0:01:53]}  Nf6 {[%clk 0:01:43]} 10. exd5 {[%clk 0:01:23]}  Qxd5 {[%clk 0:01:33]} 11. Qa4+ {[%clk 0:01:18]}  Bd7 {[%clk 0:01:32]} 12. Rxd5 {[%clk 0:00:41]}  Bxa4 {[%clk 0:01:30]} 13. Re5+ {[%clk 0:00:41]}  Kd7 {[%clk 0:01:08]} 14. Bc4 {[%clk 0:00:37]}  Bd6 {[%clk 0:00:56]} 15. Rd1 {[%clk 0:00:36]}  Kc7 {[%clk 0:00:57]} 16. Ra5 {[%clk 0:00:28]}  Bc6 {[%clk 0:00:56]} 17. Bxf7 {[%clk 0:00:21]}  Bxg2 {[%clk 0:00:45]} 18. Rg1 {[%clk 0:00:21]}  Bc6 {[%clk 0:00:39]} 19. Rxg7 {[%clk 0:00:21]}  Nd7 {[%clk 0:00:35]} 20. Be6 {[%clk 0:00:17]}  Rae8 {[%clk 0:00:32]} 21. Bxd7 {[%clk 0:00:16]}  Bxd7 {[%clk 0:00:31]} 22. Rxa7 {[%clk 0:00:16]}  Bxh2 {[%clk 0:00:25]} 23. Ra5 {[%clk 0:00:14]}  Bd6 {[%clk 0:00:24]} 24. Rd5 {[%clk 0:00:13]}  Re7 {[%clk 0:00:20]} 25. Rxe7 {[%clk 0:00:11]}  Bxe7 {[%clk 0:00:20]} 26. Bf4+ {[%clk 0:00:11]}  Kc6 {[%clk 0:00:20]} 27. Rd3 {[%clk 0:00:12]}  Bc5 {[%clk 0:00:19]} 28. c3 {[%clk 0:00:11]}  Bf5 {[%clk 0:00:19]} 29. Rf3 {[%clk 0:00:10]}  Be4 {[%clk 0:00:19]} 30. Rg3 {[%clk 0:00:10]}  h5 {[%clk 0:00:19]} 31. f3 {[%clk 0:00:08]}  Bf5 {[%clk 0:00:17]} 32. Rg5 {[%clk 0:00:08]}  Be6 {[%clk 0:00:16]} 33. b4 {[%clk 0:00:08]}  Be7 {[%clk 0:00:15]} 34. Rg6 {[%clk 0:00:08]}  Kd7 {[%clk 0:00:14]} 35. Bh2 {[%clk 0:00:07]}  h4 {[%clk 0:00:14]} 36. Rg1 {[%clk 0:00:05]}  h3 {[%clk 0:00:14]} 37. Rd1+ {[%clk 0:00:06]}  Kc6 {[%clk 0:00:14]} 38. a4 {[%clk 0:00:07]}  Rg8 {[%clk 0:00:12]} 39. b5+ {[%clk 0:00:08]}  Kc5 {[%clk 0:00:11]} 40. Bg1+ {[%clk 0:00:08]}  Kc4 {[%clk 0:00:12]} 41. Kc2 {[%clk 0:00:07]}  Rxg1 {[%clk 0:00:10]} 42. Rxg1 {[%clk 0:00:05]}  Bf5+ {[%clk 0:00:10]} 43. Kd2 {[%clk 0:00:05]}  Bd6 {[%clk 0:00:09]} 44. Ke3 {[%clk 0:00:04]}  Bc5+ {[%clk 0:00:09]} 45. Kf4 {[%clk 0:00:03]}  Bxg1 {[%clk 0:00:10]} 46. Kxf5 {[%clk 0:00:03]}  h2 {[%clk 0:00:11]} 0-1


[Site "https://www.chess.com"]

[Event "Titled Tuesday Blitz December 13 Late 2022"]
[White "Marcolino, Daniel Mattos"]
[Black "Silvestre, Christian"]
[WhiteFideId "2106841"]
[BlackFideId "30956269"]
[WhiteElo "2143"]
[BlackElo "2337"]
[Result "0-1"]
[Round "05"]
[TimeControl "180+1"]
[Date "2022.12.14"]
[WhiteClock "0:00:06"]
[BlackClock "0:00:14"]

1. d4 {[%clk 0:03:00]}  Nf6 {[%clk 0:02:23]} 2. Nf3 {[%clk 0:03:00]}  g6 {[%clk 0:02:22]} 3. g3 {[%clk 0:03:00]}  Bg7 {[%clk 0:02:23]} 4. Bg2 {[%clk 0:03:00]}  O-O {[%clk 0:02:24]} 5. O-O {[%clk 0:03:00]}  d6 {[%clk 0:02:25]} 6. b3 {[%clk 0:03:01]}  c6 {[%clk 0:02:26]} 7. Bb2 {[%clk 0:03:01]}  Qa5 {[%clk 0:02:26]} 8. Re1 {[%clk 0:03:01]}  Qh5 {[%clk 0:02:27]} 9. e4 {[%clk 0:02:57]}  Bg4 {[%clk 0:02:27]} 10. Nbd2 {[%clk 0:02:54]}  Nbd7 {[%clk 0:02:25]} 11. Qe2 {[%clk 0:02:46]}  Bh6 {[%clk 0:02:23]} 12. Rad1 {[%clk 0:02:41]}  e5 {[%clk 0:02:18]} 13. Qf1 {[%clk 0:02:34]}  Bxd2 {[%clk 0:02:11]} 14. Nxd2 {[%clk 0:02:30]}  Bxd1 {[%clk 0:02:10]} 15. Rxd1 {[%clk 0:02:30]}  c5 {[%clk 0:02:07]} 16. dxc5 {[%clk 0:02:21]}  Nxc5 {[%clk 0:02:05]} 17. b4 {[%clk 0:02:09]}  Ne6 {[%clk 0:02:01]} 18. Nc4 {[%clk 0:02:06]}  Nd4 {[%clk 0:01:53]} 19. Bxd4 {[%clk 0:02:03]}  exd4 {[%clk 0:01:51]} 20. Rxd4 {[%clk 0:02:04]}  Rad8 {[%clk 0:01:44]} 21. Qd3 {[%clk 0:02:04]}  Ng4 {[%clk 0:01:43]} 22. h3 {[%clk 0:01:59]}  Ne5 {[%clk 0:01:41]} 23. Nxe5 {[%clk 0:01:59]}  Qxe5 {[%clk 0:01:42]} 24. c3 {[%clk 0:01:56]}  b6 {[%clk 0:01:34]} 25. Rd5 {[%clk 0:01:56]}  Qe7 {[%clk 0:01:32]} 26. Bf3 {[%clk 0:01:56]}  Qc7 {[%clk 0:01:30]} 27. Kg2 {[%clk 0:01:51]}  Rfe8 {[%clk 0:01:28]} 28. a3 {[%clk 0:01:49]}  Re5 {[%clk 0:01:28]} 29. Rd4 {[%clk 0:01:24]}  Kg7 {[%clk 0:01:16]} 30. h4 {[%clk 0:01:24]}  h5 {[%clk 0:01:15]} 31. Bd1 {[%clk 0:01:21]}  Qe7 {[%clk 0:01:14]} 32. Bb3 {[%clk 0:01:20]}  Qf6 {[%clk 0:01:13]} 33. Bd5 {[%clk 0:01:18]}  Re7 {[%clk 0:01:12]} 34. f4 {[%clk 0:01:14]}  Rc7 {[%clk 0:01:10]} 35. Qd2 {[%clk 0:01:08]}  Rdc8 {[%clk 0:01:09]} 36. c4 {[%clk 0:01:05]}  b5 {[%clk 0:01:04]} 37. Qd3 {[%clk 0:00:58]}  bxc4 {[%clk 0:01:01]} 38. Rxc4 {[%clk 0:00:58]}  Rxc4 {[%clk 0:01:00]} 39. Bxc4 {[%clk 0:00:58]}  Qb2+ {[%clk 0:00:55]} 40. Kh3 {[%clk 0:00:59]}  Qf6 {[%clk 0:00:48]} 41. Qd5 {[%clk 0:00:48]}  Qe6+ {[%clk 0:00:31]} 42. Qxe6 {[%clk 0:00:41]}  fxe6 {[%clk 0:00:31]} 43. Bxe6 {[%clk 0:00:41]}  Rc3 {[%clk 0:00:32]} 44. b5 {[%clk 0:00:27]}  Rxa3 {[%clk 0:00:31]} 45. Bd5 {[%clk 0:00:21]}  Re3 {[%clk 0:00:21]} 46. Kg2 {[%clk 0:00:17]}  Kf6 {[%clk 0:00:20]} 47. Kf2 {[%clk 0:00:16]}  Rc3 {[%clk 0:00:21]} 48. Kg2 {[%clk 0:00:16]}  Ra3 {[%clk 0:00:18]} 49. Bc6 {[%clk 0:00:16]}  Ke7 {[%clk 0:00:18]} 50. Kh2 {[%clk 0:00:16]}  Rb3 {[%clk 0:00:17]} 51. Kg2 {[%clk 0:00:16]}  Rb2+ {[%clk 0:00:16]} 52. Kf3 {[%clk 0:00:17]}  Rb3+ {[%clk 0:00:17]} 53. Kf2 {[%clk 0:00:17]}  Rc3 {[%clk 0:00:17]} 54. Kg2 {[%clk 0:00:17]}  Kf6 {[%clk 0:00:16]} 55. Kf2 {[%clk 0:00:17]}  a5 {[%clk 0:00:14]} 56. Bd5 {[%clk 0:00:11]}  a4 {[%clk 0:00:14]} 57. b6 {[%clk 0:00:11]}  Rc2+ {[%clk 0:00:15]} 58. Ke3 {[%clk 0:00:11]}  Rb2 {[%clk 0:00:16]} 59. b7 {[%clk 0:00:10]}  a3 {[%clk 0:00:16]} 60. Kd4 {[%clk 0:00:10]}  Rxb7 {[%clk 0:00:16]} 61. Kc3 {[%clk 0:00:07]}  Rb2 {[%clk 0:00:15]} 62. Bc4 {[%clk 0:00:06]}  Rg2 {[%clk 0:00:14]} 0-1


[Site "https://www.chess.com"]

[Event "Titled Tuesday Blitz December 13 Late 2022"]
[White "Martinez Ramirez, Lennis"]
[Black "Gorodetzky, David"]
[WhiteFideId "3509079"]
[BlackFideId "2813416"]
[WhiteElo "2439"]
[BlackElo "2484"]
[Result "0-1"]
[Round "05"]
[TimeControl "180+1"]
[Date "2022.12.13"]
[WhiteClock "0:00:52"]
[BlackClock "0:00:06"]

1. c4 {[%clk 0:02:57]}  e6 {[%clk 0:02:23]} 2. d4 {[%clk 0:02:57]}  Nf6 {[%clk 0:02:22]} 3. Nf3 {[%clk 0:02:58]}  d5 {[%clk 0:02:21]} 4. Nc3 {[%clk 0:02:57]}  Be7 {[%clk 0:02:14]} 5. Bg5 {[%clk 0:02:54]}  O-O {[%clk 0:02:13]} 6. e3 {[%clk 0:02:55]}  b6 {[%clk 0:02:13]} 7. Qc2 {[%clk 0:02:55]}  Bb7 {[%clk 0:02:11]} 8. Rd1 {[%clk 0:02:55]}  Nbd7 {[%clk 0:02:10]} 9. cxd5 {[%clk 0:02:49]}  Nxd5 {[%clk 0:02:09]} 10. Bxe7 {[%clk 0:02:49]}  Qxe7 {[%clk 0:02:08]} 11. Nxd5 {[%clk 0:02:49]}  Bxd5 {[%clk 0:02:08]} 12. e4 {[%clk 0:02:40]}  Qb4+ {[%clk 0:02:07]} 13. Nd2 {[%clk 0:02:33]}  Bb7 {[%clk 0:01:35]} 14. Qxc7 {[%clk 0:02:31]}  Qxd4 {[%clk 0:01:00]} 15. Qxb7 {[%clk 0:02:27]}  Rfd8 {[%clk 0:00:57]} 16. Qa6 {[%clk 0:02:11]}  Nc5 {[%clk 0:00:54]} 17. Qc4 {[%clk 0:02:10]}  Qxb2 {[%clk 0:00:52]} 18. Be2 {[%clk 0:02:09]}  Rd4 {[%clk 0:00:45]} 19. Qc1 {[%clk 0:02:00]}  Qxa2 {[%clk 0:00:42]} 20. O-O {[%clk 0:02:00]}  h6 {[%clk 0:00:24]} 21. Nf3 {[%clk 0:01:56]}  Rxe4 {[%clk 0:00:23]} 22. Bb5 {[%clk 0:01:54]}  Rc8 {[%clk 0:00:22]} 23. Rd2 {[%clk 0:01:34]}  Qa5 {[%clk 0:00:19]} 24. Rb2 {[%clk 0:01:33]}  Rd8 {[%clk 0:00:17]} 25. Rd1 {[%clk 0:01:29]}  Rxd1+ {[%clk 0:00:16]} 26. Qxd1 {[%clk 0:01:30]}  Qc3 {[%clk 0:00:15]} 27. Rc2 {[%clk 0:01:25]}  Qb3 {[%clk 0:00:15]} 28. Bf1 {[%clk 0:01:21]}  g5 {[%clk 0:00:15]} 29. h3 {[%clk 0:01:21]}  Rf4 {[%clk 0:00:13]} 30. Nd4 {[%clk 0:01:12]}  Rxd4 {[%clk 0:00:10]} 31. Qxd4 {[%clk 0:01:10]}  Qxc2 {[%clk 0:00:11]} 32. Qf6 {[%clk 0:01:11]}  Qg6 {[%clk 0:00:10]} 33. Qd8+ {[%clk 0:01:11]}  Kg7 {[%clk 0:00:10]} 34. Qc7 {[%clk 0:01:09]}  Qb1 {[%clk 0:00:06]} 35. Qxa7 {[%clk 0:01:09]}  Ne4 {[%clk 0:00:06]} 36. Qa4 {[%clk 0:01:08]}  Nf6 {[%clk 0:00:05]} 37. Qd4 {[%clk 0:01:08]}  Qb3 {[%clk 0:00:05]} 38. f4 {[%clk 0:01:08]}  gxf4 {[%clk 0:00:04]} 39. Qxf4 {[%clk 0:01:09]}  Qd5 {[%clk 0:00:05]} 40. Qg3+ {[%clk 0:01:06]}  Qg5 {[%clk 0:00:04]} 41. Qc3 {[%clk 0:01:06]}  Qc5+ {[%clk 0:00:05]} 42. Qxc5 {[%clk 0:01:06]}  bxc5 {[%clk 0:00:06]} 43. Kf2 {[%clk 0:01:06]}  Ne4+ {[%clk 0:00:05]} 44. Ke3 {[%clk 0:01:07]}  Nd6 {[%clk 0:00:06]} 45. Kf4 {[%clk 0:01:06]}  Kf6 {[%clk 0:00:07]} 46. g4 {[%clk 0:01:06]}  e5+ {[%clk 0:00:07]} 47. Kf3 {[%clk 0:01:06]}  c4 {[%clk 0:00:07]} 48. h4 {[%clk 0:01:06]}  c3 {[%clk 0:00:07]} 49. Ke3 {[%clk 0:01:06]}  Ke6 {[%clk 0:00:03]} 50. Bh3 {[%clk 0:01:05]}  Kd5 {[%clk 0:00:02]} 51. g5 {[%clk 0:01:04]}  hxg5 {[%clk 0:00:03]} 52. h5 {[%clk 0:01:05]}  f5 {[%clk 0:00:03]} 53. h6 {[%clk 0:01:05]}  f4+ {[%clk 0:00:04]} 54. Kd3 {[%clk 0:01:05]}  Nf7 {[%clk 0:00:04]} 55. h7 {[%clk 0:01:02]}  e4+ {[%clk 0:00:05]} 56. Kxc3 {[%clk 0:01:02]}  f3 {[%clk 0:00:05]} 57. Bg4 {[%clk 0:00:58]}  Ke5 {[%clk 0:00:05]} 58. Bh5 {[%clk 0:00:58]}  Nh8 {[%clk 0:00:06]} 59. Kd2 {[%clk 0:00:57]}  Kf4 {[%clk 0:00:07]} 60. Kc3 {[%clk 0:00:54]}  g4 {[%clk 0:00:07]} 61. Kd2 {[%clk 0:00:54]}  g3 {[%clk 0:00:08]} 62. Ke1 {[%clk 0:00:55]}  g2 {[%clk 0:00:08]} 63. Kf2 {[%clk 0:00:55]}  e3+ {[%clk 0:00:09]} 64. Kg1 {[%clk 0:00:55]}  e2 {[%clk 0:00:08]} 65. Bxf3 {[%clk 0:00:54]}  e1=Q+ {[%clk 0:00:08]} 66. Kxg2 {[%clk 0:00:55]}  Qg3+ {[%clk 0:00:08]} 67. Kh1 {[%clk 0:00:56]}  Ke3 {[%clk 0:00:05]} 68. Bg2 {[%clk 0:00:55]}  Kf2 {[%clk 0:00:05]} 69. Be4 {[%clk 0:00:52]}  Qg1# {[%clk 0:00:06]} 0-1


[Site "https://www.chess.com"]

[Event "Titled Tuesday Blitz December 13 Late 2022"]
[White "Meduri, Aakaash"]
[Black "Averjanov, Alexey"]
[WhiteFideId "2032252"]
[BlackFideId "14109867"]
[WhiteElo "2113"]
[BlackElo "2646"]
[Result "1-0"]
[Round "05"]
[TimeControl "180+1"]
[Date "2022.12.14"]
[WhiteClock "0:00:08"]
[BlackClock "0:00:01"]

1. d4 {[%clk 0:02:55]}  d5 {[%clk 0:02:59]} 2. Bf4 {[%clk 0:02:54]}  Nf6 {[%clk 0:02:59]} 3. e3 {[%clk 0:02:54]}  e6 {[%clk 0:02:58]} 4. Nf3 {[%clk 0:02:52]}  c5 {[%clk 0:02:58]} 5. Bb5+ {[%clk 0:02:52]}  Nc6 {[%clk 0:02:52]} 6. c3 {[%clk 0:02:46]}  Bd6 {[%clk 0:02:49]} 7. dxc5 {[%clk 0:02:46]}  Bxc5 {[%clk 0:02:48]} 8. O-O {[%clk 0:02:46]}  Bd7 {[%clk 0:02:46]} 9. Nbd2 {[%clk 0:02:45]}  O-O {[%clk 0:02:44]} 10. h3 {[%clk 0:02:41]}  Qe7 {[%clk 0:02:42]} 11. Qe2 {[%clk 0:02:38]}  a6 {[%clk 0:02:41]} 12. Ba4 {[%clk 0:02:35]}  h6 {[%clk 0:02:34]} 13. Rfe1 {[%clk 0:02:34]}  b5 {[%clk 0:02:29]} 14. Bc2 {[%clk 0:02:34]}  e5 {[%clk 0:02:29]} 15. Bh2 {[%clk 0:02:34]}  Rfe8 {[%clk 0:02:24]} 16. Rad1 {[%clk 0:02:33]}  Rad8 {[%clk 0:02:23]} 17. Nb3 {[%clk 0:02:20]}  Bb6 {[%clk 0:02:18]} 18. Qd2 {[%clk 0:02:16]}  Be6 {[%clk 0:02:01]} 19. Qc1 {[%clk 0:02:16]}  Bc8 {[%clk 0:01:54]} 20. Qb1 {[%clk 0:02:16]}  Bb7 {[%clk 0:01:52]} 21. Bg3 {[%clk 0:02:08]}  e4 {[%clk 0:01:45]} 22. Nfd4 {[%clk 0:02:02]}  Ne5 {[%clk 0:01:45]} 23. a4 {[%clk 0:01:52]}  Qd7 {[%clk 0:01:38]} 24. axb5 {[%clk 0:01:52]}  axb5 {[%clk 0:01:39]} 25. Ne2 {[%clk 0:01:45]}  Qe7 {[%clk 0:01:23]} 26. Nbd4 {[%clk 0:01:45]}  b4 {[%clk 0:01:19]} 27. Qa2 {[%clk 0:01:42]}  Bc5 {[%clk 0:01:07]} 28. Qb3 {[%clk 0:01:38]}  Ba8 {[%clk 0:01:00]} 29. Ra1 {[%clk 0:01:35]}  bxc3 {[%clk 0:00:59]} 30. bxc3 {[%clk 0:01:20]}  Nc4 {[%clk 0:00:59]} 31. Qb5 {[%clk 0:01:07]}  Bd6 {[%clk 0:00:49]} 32. Nf5 {[%clk 0:01:01]}  Qe6 {[%clk 0:00:44]} 33. Nxd6 {[%clk 0:01:00]}  Nxd6 {[%clk 0:00:45]} 34. Qa4 {[%clk 0:00:55]}  Nf5 {[%clk 0:00:41]} 35. Nd4 {[%clk 0:00:55]}  Nxd4 {[%clk 0:00:39]} 36. cxd4 {[%clk 0:00:55]}  Bc6 {[%clk 0:00:37]} 37. Qb4 {[%clk 0:00:52]}  Rd7 {[%clk 0:00:35]} 38. Ra6 {[%clk 0:00:50]}  Rc8 {[%clk 0:00:28]} 39. Ba4 {[%clk 0:00:48]}  Rdd8 {[%clk 0:00:18]} 40. Bb3 {[%clk 0:00:31]}  Qe8 {[%clk 0:00:17]} 41. Rea1 {[%clk 0:00:26]}  Bb5 {[%clk 0:00:16]} 42. Rb6 {[%clk 0:00:23]}  Bc4 {[%clk 0:00:16]} 43. Ba4 {[%clk 0:00:23]}  Qf8 {[%clk 0:00:15]} 44. Bd6 {[%clk 0:00:22]}  Rxd6 {[%clk 0:00:13]} 45. Qxd6 {[%clk 0:00:23]}  Qxd6 {[%clk 0:00:11]} 46. Rxd6 {[%clk 0:00:24]}  Rc7 {[%clk 0:00:11]} 47. Rb1 {[%clk 0:00:22]}  Kh7 {[%clk 0:00:10]} 48. Bb3 {[%clk 0:00:20]}  Rb7 {[%clk 0:00:10]} 49. Ba2 {[%clk 0:00:20]}  Rc7 {[%clk 0:00:06]} 50. Bxc4 {[%clk 0:00:20]}  Rxc4 {[%clk 0:00:07]} 51. Rb2 {[%clk 0:00:19]}  Kg6 {[%clk 0:00:07]} 52. Kh2 {[%clk 0:00:19]}  h5 {[%clk 0:00:08]} 53. h4 {[%clk 0:00:18]}  Kf5 {[%clk 0:00:08]} 54. Rdb6 {[%clk 0:00:16]}  Rc1 {[%clk 0:00:05]} 55. R2b5 {[%clk 0:00:14]}  Rd1 {[%clk 0:00:02]} 56. Rxf6+ {[%clk 0:00:12]}  Kxf6 {[%clk 0:00:02]} 57. Rxd5 {[%clk 0:00:12]}  g6 {[%clk 0:00:02]} 58. Kg3 {[%clk 0:00:12]}  Kg7 {[%clk 0:00:01]} 59. Rd7 {[%clk 0:00:12]}  Kg8 {[%clk 0:00:01]} 60. Kf4 {[%clk 0:00:11]}  f5 {[%clk 0:00:02]} 61. f3 {[%clk 0:00:11]}  Rg1 {[%clk 0:00:02]} 62. Kg3 {[%clk 0:00:12]}  exf3 {[%clk 0:00:02]} 63. Kxf3 {[%clk 0:00:12]}  Kf8 {[%clk 0:00:03]} 64. Kf2 {[%clk 0:00:10]}  Rb1 {[%clk 0:00:04]} 65. Kg3 {[%clk 0:00:10]}  Rb2 {[%clk 0:00:04]} 66. Kf3 {[%clk 0:00:10]}  Rc2 {[%clk 0:00:04]} 67. g3 {[%clk 0:00:10]}  Kg8 {[%clk 0:00:04]} 68. Kf4 {[%clk 0:00:10]}  Rf2+ {[%clk 0:00:04]} 69. Kg5 {[%clk 0:00:11]}  Rf3 {[%clk 0:00:05]} 70. Kxg6 {[%clk 0:00:11]}  Rxg3+ {[%clk 0:00:05]} 71. Kxh5 {[%clk 0:00:10]}  Rxe3 {[%clk 0:00:05]} 72. Kg5 {[%clk 0:00:11]}  Rh3 {[%clk 0:00:05]} 73. Re7 {[%clk 0:00:10]}  f4 {[%clk 0:00:05]} 74. d5 {[%clk 0:00:09]}  Rd3 {[%clk 0:00:04]} 75. Re5 {[%clk 0:00:08]}  f3 {[%clk 0:00:04]} 76. Kg6 {[%clk 0:00:07]}  Kf8 {[%clk 0:00:03]} 77. Rf5+ {[%clk 0:00:07]}  Kg8 {[%clk 0:00:03]} 78. h5 {[%clk 0:00:08]}  f2 {[%clk 0:00:03]} 79. h6 {[%clk 0:00:08]}  Kh8 {[%clk 0:00:01]} 80. Rf8# {[%clk 0:00:08]} 1-0


[Site "https://www.chess.com"]

[Event "Titled Tuesday Blitz December 13 Late 2022"]
[White "Mieles Palau, Daniel"]
[Black "Stanisz, Patryk"]
[WhiteFideId "3600467"]
[BlackFideId "1123106"]
[WhiteElo "2344"]
[BlackElo "2069"]
[Result "1-0"]
[Round "05"]
[TimeControl "180+1"]
[Date "2022.12.14"]
[WhiteClock "0:00:54"]
[BlackClock "0:00:03"]

1. b3 {[%clk 0:02:30]}  d5 {[%clk 0:02:56]} 2. e3 {[%clk 0:02:29]}  Nf6 {[%clk 0:02:56]} 3. Bb2 {[%clk 0:02:29]}  c5 {[%clk 0:02:51]} 4. Nf3 {[%clk 0:02:29]}  Nc6 {[%clk 0:02:49]} 5. Bb5 {[%clk 0:02:27]}  Bd7 {[%clk 0:02:49]} 6. O-O {[%clk 0:02:27]}  e6 {[%clk 0:02:41]} 7. d3 {[%clk 0:02:27]}  Be7 {[%clk 0:02:41]} 8. Nbd2 {[%clk 0:02:26]}  O-O {[%clk 0:02:40]} 9. Bxc6 {[%clk 0:02:25]}  Bxc6 {[%clk 0:02:40]} 10. Ne5 {[%clk 0:02:26]}  Rc8 {[%clk 0:02:38]} 11. f4 {[%clk 0:02:26]}  b6 {[%clk 0:02:38]} 12. Qe2 {[%clk 0:02:17]}  Bb7 {[%clk 0:02:37]} 13. Rf3 {[%clk 0:02:12]}  Nd7 {[%clk 0:02:26]} 14. Nxd7 {[%clk 0:02:09]}  Qxd7 {[%clk 0:02:26]} 15. Raf1 {[%clk 0:02:08]}  Rfd8 {[%clk 0:01:54]} 16. Rh3 {[%clk 0:01:52]}  g6 {[%clk 0:01:48]} 17. Nf3 {[%clk 0:01:47]}  Qd6 {[%clk 0:01:19]} 18. Be5 {[%clk 0:01:25]}  Qc6 {[%clk 0:01:16]} 19. Ng5 {[%clk 0:01:23]}  f6 {[%clk 0:00:21]} 20. Rxh7 {[%clk 0:01:20]}  fxe5 {[%clk 0:00:16]} 21. Rxe7 {[%clk 0:01:19]}  Rd7 {[%clk 0:00:12]} 22. Rxe6 {[%clk 0:01:18]}  Rd6 {[%clk 0:00:10]} 23. Qg4 {[%clk 0:01:17]}  d4 {[%clk 0:00:05]} 24. e4 {[%clk 0:01:15]}  Rf8 {[%clk 0:00:02]} 25. fxe5 {[%clk 0:01:11]}  Rxe6 {[%clk 0:00:02]} 26. Rxf8+ {[%clk 0:01:09]}  Kxf8 {[%clk 0:00:02]} 27. Nxe6+ {[%clk 0:01:09]}  Ke7 {[%clk 0:00:03]} 28. Nf4 {[%clk 0:01:08]}  Bc8 {[%clk 0:00:03]} 29. Qxg6 {[%clk 0:01:05]}  Qxg6 {[%clk 0:00:03]} 30. Nxg6+ {[%clk 0:01:05]}  Kf7 {[%clk 0:00:02]} 31. Nf4 {[%clk 0:01:05]}  Bg4 {[%clk 0:00:03]} 32. Kf2 {[%clk 0:01:00]}  Bd1 {[%clk 0:00:03]} 33. Ke1 {[%clk 0:01:01]}  Bxc2 {[%clk 0:00:04]} 34. Kd2 {[%clk 0:01:01]}  Bb1 {[%clk 0:00:04]} 35. Kc1 {[%clk 0:01:02]}  Bxa2 {[%clk 0:00:04]} 36. Kb2 {[%clk 0:01:02]}  c4 {[%clk 0:00:04]} 37. dxc4 {[%clk 0:01:00]}  Bxb3 {[%clk 0:00:03]} 38. Kxb3 {[%clk 0:01:00]}  a6 {[%clk 0:00:03]} 39. g4 {[%clk 0:00:59]}  b5 {[%clk 0:00:03]} 40. cxb5 {[%clk 0:00:59]}  axb5 {[%clk 0:00:04]} 41. g5 {[%clk 0:00:58]}  Ke7 {[%clk 0:00:03]} 42. g6 {[%clk 0:00:57]}  Kf8 {[%clk 0:00:04]} 43. e6 {[%clk 0:00:57]}  b4 {[%clk 0:00:03]} 44. Nd3 {[%clk 0:00:55]}  Ke7 {[%clk 0:00:03]} 45. g7 {[%clk 0:00:55]}  Kxe6 {[%clk 0:00:02]} 46. g8=Q+ {[%clk 0:00:55]}  Kf6 {[%clk 0:00:03]} 47. Qc4 {[%clk 0:00:55]}  Kg5 {[%clk 0:00:03]} 48. Qxd4 {[%clk 0:00:55]}  Kg4 {[%clk 0:00:04]} 49. Qf6 {[%clk 0:00:54]}  Kh3 {[%clk 0:00:03]} 50. Qg5 {[%clk 0:00:54]}  Kxh2 {[%clk 0:00:03]} 51. Qg4 {[%clk 0:00:55]}  Kh1 {[%clk 0:00:02]} 52. Ne1 {[%clk 0:00:55]}  Kh2 {[%clk 0:00:03]} 53. Qg2# {[%clk 0:00:54]} 1-0


[Site "https://www.chess.com"]